fUST/lending_fUST_20250510
["ID","MTS","AMOUNT","RATE_DAILY","PERIOD"]
[360499201,1746819046389,-264.040455,0.00010694,2]
[360499203,1746819046398,-264.040455,0.00010694,2]
[360499205,1746819046408,-264.040455,0.00010694,2]
[360499207,1746819046418,-264.040455,0.00010694,2]
[360499209,1746819046427,-264.040455,0.00010694,2]
[360499211,1746819046437,-151.0,0.00010694,2]
[360499221,1746819046533,-151.0,0.00010694,2]
[360499222,1746819046544,-151.0,0.00010694,2]
[360499223,1746819046554,-151.0,0.00010694,2]
[360499224,1746819046563,-151.0,0.00010694,2]
[360499225,1746819046572,-160.733989,0.00010694,2]
[360499226,1746819046582,-225.327802,0.00010694,2]
[360499227,1746819046592,-225.327795,0.00010694,2]
[360499228,1746819046602,-57061.90436274,0.00010694,2]
[360499230,1746819046616,-2416.97617946,0.00010694,2]
[360499231,1746819046636,-1831.16299047,0.00010694,2]
[360499233,1746819046652,-6019.16706815,0.00010694,2]
[360499235,1746819046677,-2199.99646509,0.00010694,2]
[360499238,1746819046690,-3658.68537176,0.00010694,2]
[360499245,1746819046751,-1940.78210474,0.00010694,2]
[360500165,1746820238270,-616.36448858,9.158e-05,2]
[360500166,1746820238280,-370.30893259,9.158e-05,2]
[360500167,1746820238290,-500.0,9.158e-05,2]
[360500168,1746820238302,-500.0,9.158e-05,2]
[360500169,1746820238319,-500.0,9.158e-05,2]
[360500170,1746820238328,-500.0,9.158e-05,2]
[360500171,1746820238338,-500.0,9.158e-05,2]
[360500172,1746820238348,-500.0,9.158e-05,2]
[360500173,1746820238359,-6.47400263,9.158e-05,2]
[360500175,1746820238408,-493.52599737,9.158e-05,2]
[360500176,1746820238418,-500.0,9.158e-05,2]
[360500177,1746820238428,-500.0,9.158e-05,2]
[360500178,1746820238438,-500.0,9.158e-05,2]
[360500179,1746820238450,-500.0,9.158e-05,2]
[360500180,1746820238469,-500.0,9.158e-05,2]
[360500181,1746820238481,-500.0,9.158e-05,2]
[360500182,1746820238491,-500.0,9.158e-05,2]
[360500183,1746820238500,-500.0,9.158e-05,2]
[360500184,1746820238509,-500.0,9.158e-05,2]
[360500185,1746820238519,-500.0,9.158e-05,2]
[360500186,1746820238528,-500.0,9.158e-05,2]
[360500187,1746820238537,-500.0,9.158e-05,2]
[360500188,1746820238548,-500.0,9.158e-05,2]
[360500189,1746820238558,-500.0,9.158e-05,2]
[360500190,1746820238567,-500.0,9.158e-05,2]
[360500191,1746820238577,-292.55900263,9.158e-05,2]
[360500230,1746820240488,-207.44099737,9.158e-05,2]
[360500232,1746820240498,-500.0,9.158e-05,2]
[360500234,1746820240507,-366.37080542,9.158e-05,2]
[360500240,1746820240559,-133.62919458,9.158e-05,2]
[360500242,1746820240568,-500.0,9.158e-05,2]
[360500244,1746820240578,-500.0,9.158e-05,2]
[360500246,1746820240587,-500.0,9.158e-05,2]
[360500248,1746820240597,-500.0,9.158e-05,2]
[360500250,1746820240606,-370.90523692,9.158e-05,2]
[360500804,1746820246535,-129.09476308,9.158e-05,2]
[360500806,1746820246545,-500.0,9.158e-05,2]
[360500808,1746820246555,-16.40523692,9.158e-05,2]
[360506324,1746821432488,-265.0,9.102e-05,2]
[360506325,1746821432498,-300.0,9.148e-05,2]
[360506326,1746821432508,-300.0,9.148e-05,2]
[360506327,1746821432517,-270.0,9.148e-05,2]
[360506328,1746821432527,-789.0,9.148e-05,2]
[360506329,1746821432536,-500.0,9.149e-05,2]
[360506330,1746821432546,-500.0,9.149e-05,2]
[360506331,1746821432555,-293.29930801,9.149e-05,2]
[360506333,1746821432565,-500.0,9.149e-05,2]
[360506334,1746821432574,-500.0,9.149e-05,2]
[360506335,1746821432583,-164.58583996,9.149e-05,2]
[360506336,1746821432593,-500.0,9.149e-05,2]
[360506337,1746821432603,-500.0,9.149e-05,2]
[360506338,1746821432612,-500.0,9.149e-05,2]
[360506339,1746821432621,-500.0,9.149e-05,2]
[360506340,1746821432631,-500.0,9.149e-05,2]
[360506341,1746821432640,-500.0,9.149e-05,2]
[360506342,1746821432649,-500.0,9.149e-05,2]
[360506343,1746821432660,-500.0,9.149e-05,2]
[360506344,1746821432670,-500.0,9.149e-05,2]
[360506345,1746821432679,-500.0,9.149e-05,2]
[360506346,1746821432689,-500.0,9.149e-05,2]
[360506347,1746821432700,-500.0,9.149e-05,2]
[360506348,1746821432714,-500.0,9.149e-05,2]
[360506349,1746821432725,-500.0,9.149e-05,2]
[360506350,1746821432735,-500.0,9.149e-05,2]
[360506351,1746821432746,-500.0,9.149e-05,2]
[360506352,1746821432759,-500.0,9.149e-05,2]
[360506353,1746821432768,-500.0,9.149e-05,2]
[360506354,1746821432780,-500.0,9.149e-05,2]
[360506355,1746821432790,-291.42022707,9.149e-05,2]
[360506356,1746821432800,-500.0,9.149e-05,2]
[360506357,1746821432810,-500.0,9.149e-05,2]
[360506358,1746821432820,-500.0,9.149e-05,2]
[360506359,1746821432830,-500.0,9.149e-05,2]
[360506360,1746821432840,-500.0,9.149e-05,2]
[360506361,1746821432850,-500.0,9.149e-05,2]
[360506362,1746821432859,-500.0,9.149e-05,2]
[360506363,1746821432869,-500.0,9.149e-05,2]
[360506364,1746821432879,-500.0,9.149e-05,2]
[360506365,1746821432889,-500.0,9.149e-05,2]
[360506366,1746821432898,-500.0,9.149e-05,2]
[360506367,1746821432908,-500.0,9.149e-05,2]
[360506368,1746821432918,-500.0,9.149e-05,2]
[360506369,1746821432927,-500.0,9.149e-05,2]
[360506370,1746821432937,-500.0,9.149e-05,2]
[360506371,1746821432947,-500.0,9.149e-05,2]
[360506372,1746821432957,-500.0,9.149e-05,2]
[360506373,1746821432967,-500.0,9.149e-05,2]
[360506374,1746821432977,-500.0,9.149e-05,2]
[360506375,1746821432987,-500.0,9.149e-05,2]
[360506376,1746821432997,-250.0,9.149e-05,2]
[360506377,1746821433019,-500.0,9.149e-05,2]
[360506378,1746821433030,-500.0,9.149e-05,2]
[360506379,1746821433196,-75.89527371,9.149e-05,2]
[360506380,1746821433247,-424.10472629,9.149e-05,2]
[360506381,1746821433260,-500.0,9.149e-05,2]
[360506382,1746821433271,-500.0,9.149e-05,2]
[360506383,1746821433281,-432.97154371,9.149e-05,2]
[360506384,1746821433346,-198.91915891,9.148e-05,2]
[360506385,1746821433356,-451.00763368,9.148e-05,2]
[360506386,1746821433367,-67.02845629,9.149e-05,2]
[360506387,1746821433378,-500.0,9.149e-05,2]
[360506388,1746821433389,-500.0,9.149e-05,2]
[360506389,1746821433399,-500.0,9.149e-05,2]
[360506390,1746821433408,-500.0,9.149e-05,2]
[360506391,1746821433418,-500.0,9.149e-05,2]
[360506392,1746821433427,-500.0,9.149e-05,2]
[360506393,1746821433436,-500.0,9.149e-05,2]
[360506394,1746821433445,-500.0,9.149e-05,2]
[360506395,1746821433454,-500.0,9.149e-05,2]
[360506396,1746821433464,-500.0,9.149e-05,2]
[360506397,1746821433474,-500.0,9.149e-05,2]
[360506398,1746821433485,-500.0,9.149e-05,2]
[360506399,1746821433494,-500.0,9.149e-05,2]
[360506400,1746821433506,-500.0,9.149e-05,2]
[360506401,1746821433516,-500.0,9.149e-05,2]
[360506402,1746821433526,-500.0,9.149e-05,2]
[360506403,1746821433535,-500.0,9.149e-05,2]
[360506404,1746821433544,-2865.96438524,9.149e-05,2]
[360506442,1746821438446,-2360.03321404,9.149e-05,2]
[360506443,1746821438456,-309.39832824,9.152e-05,2]
[360506444,1746821438466,-151.0,9.153e-05,2]
[360506445,1746821438476,-151.0,9.153e-05,2]
[360506446,1746821438486,-360.0,9.158e-05,2]
[360506447,1746821438496,-151.0,9.171e-05,2]
[360506448,1746821438507,-151.0,9.171e-05,2]
[360506449,1746821438517,-151.0,9.171e-05,2]
[360506450,1746821438528,-151.0,9.171e-05,2]
[360506451,1746821438538,-151.0,9.171e-05,2]
[360506452,1746821438547,-151.0,9.171e-05,2]
[360506453,1746821438557,-151.0,9.171e-05,2]
[360506454,1746821438566,-151.0,9.171e-05,2]
[360506455,1746821438576,-151.0,9.171e-05,2]
[360506456,1746821438586,-151.0,9.171e-05,2]
[360506457,1746821438596,-151.0,9.171e-05,2]
[360506458,1746821438605,-183.57894,9.173e-05,2]
[360506459,1746821438615,-48.15623197,9.173e-05,2]
[360506460,1746821438788,-135.42270803,9.173e-05,2]
[360506461,1746821438799,-151.0,9.174e-05,2]
[360506462,1746821438808,-183.57894,9.174e-05,2]
[360506463,1746821438818,-183.57894,9.174e-05,2]
[360506464,1746821438828,-151.0,9.174e-05,2]
[360506465,1746821438838,-265.18567,9.174e-05,2]
[360506466,1746821438848,-151.0,9.175e-05,2]
[360506467,1746821438857,-230.76308,9.175e-05,2]
[360506468,1746821438866,-156.425995,9.183e-05,2]
[360506469,1746821438876,-183.57894,9.183e-05,2]
[360506470,1746821438886,-183.57894,9.183e-05,2]
[360506471,1746821438895,-243.941146,9.183e-05,2]
[360506472,1746821438904,-652.39360406,9.369e-05,2]
[360506473,1746821438913,-151.008831,9.58e-05,2]
[360506474,1746821438923,-724.5730674,9.58e-05,2]
[360506475,1746821438932,-151.0,9.58e-05,2]
[360506476,1746821438942,-151.0,9.58e-05,2]
[360506477,1746821438952,-652.39360406,9.701e-05,2]
[360506478,1746821438961,-151.0,9.703e-05,2]
[360506479,1746821438971,-151.0,9.703e-05,2]
[360506480,1746821438981,-183.57894,9.716e-05,2]
[360506481,1746821438992,-183.57894,9.716e-05,2]
[360506482,1746821439002,-151.0,9.716e-05,2]
[360506483,1746821439018,-151.0,9.716e-05,2]
[360506484,1746821439028,-151.0,9.716e-05,2]
[360506485,1746821439039,-151.0,9.716e-05,2]
[360506486,1746821439049,-151.0,9.716e-05,2]
[360506487,1746821439060,-151.0,9.716e-05,2]
[360506488,1746821439069,-293.64318526,9.767e-05,2]
[360506489,1746821439079,-652.39360406,9.972e-05,2]
[360506490,1746821439088,-1800.0,9.972e-05,2]
[360506491,1746821439097,-151.0,9.98e-05,2]
[360506492,1746821439106,-164.672819,9.98e-05,2]
[360506493,1746821439115,-164.672819,9.98e-05,2]
[360506494,1746821439124,-420.0,0.00010063,2]
[360506495,1746821439134,-652.39360406,0.00010141,2]
[360506496,1746821439144,-500.0,0.0001019,2]
[360506497,1746821439154,-183.57894,0.00010223,2]
[360506498,1746821439163,-183.57894,0.00010223,2]
[360506499,1746821439172,-652.39360406,0.00010424,2]
[360506500,1746821439182,-183.57894,0.0001053,2]
[360506501,1746821439191,-183.57894,0.0001053,2]
[360506502,1746821439200,-151.0,0.0001053,2]
[360506503,1746821439210,-151.0,0.0001053,2]
[360506504,1746821439219,-151.0,0.0001053,2]
[360506505,1746821439229,-74.66415104,0.0001053,2]
[360506506,1746821439248,-76.33584896,0.0001053,2]
[360506507,1746821439262,-151.0,0.0001053,2]
[360506508,1746821439272,-151.0,0.0001053,2]
[360506509,1746821439282,-247.882169,0.0001053,2]
[360506510,1746821439292,-151.0,0.0001053,2]
[360506511,1746821439301,-8.54398204,0.0001053,2]
[360506521,1746821440808,-142.45601796,0.0001053,2]
[360506524,1746821440819,-546.0,0.0001053,2]
[360506525,1746821440829,-155.47231333,0.0001053,2]
[360507069,1746821446570,-479.99963926,0.0001053,2]
[360507071,1746821446583,-1604.52804741,0.0001053,2]
[360507073,1746821446593,-708.0,0.0001053,2]
[360507075,1746821446602,-151.0,0.0001058,2]
[360507077,1746821446612,-151.0,0.0001058,2]
[360507079,1746821446622,-151.0,0.0001058,2]
[360507081,1746821446631,-164.672819,0.0001058,2]
[360507083,1746821446641,-164.672819,0.0001058,2]
[360507085,1746821446651,-183.57894,0.000106,2]
[360507087,1746821446661,-183.57894,0.000106,2]
[360507089,1746821446670,-151.0,0.000106,2]
[360507091,1746821446680,-151.0,0.000106,2]
[360507093,1746821446689,-151.0,0.000106,2]
[360507095,1746821446699,-151.0,0.000106,2]
[360507097,1746821446713,-201.180728,0.000106,2]
[360507099,1746821446723,-201.180728,0.000106,2]
[360507101,1746821446732,-151.0,0.000106,2]
[360507104,1746821446742,-151.0,0.000106,2]
[360507107,1746821446752,-688.540139,0.000106,2]
[360507109,1746821446761,-688.540139,0.000106,2]
[360507112,1746821446771,-151.0,0.000106,2]
[360507114,1746821446780,-4828.63020324,0.000106,2]
[360513653,1746822100180,-4902.0,8.873e-05,2]
[360513657,1746822237071,-151.0,8.784e-05,2]
[360513782,1746822632951,-300.0,8.958e-05,2]
[360513784,1746822632960,-466.73543289,8.958e-05,2]
[360513786,1746822632970,-189.77295688,8.958e-05,2]
[360513788,1746822632979,-6999.2261333,9.139e-05,2]
[360513790,1746822632989,-151.0,9.151e-05,2]
[360513792,1746822632998,-409.66009277,9.238e-05,2]
[360513794,1746822633010,-581.03308283,9.238e-05,2]
[360513796,1746822633019,-420.0,9.854e-05,2]
[360513798,1746822633028,-183.392991,9.972e-05,2]
[360513800,1746822633038,-151.0,9.972e-05,2]
[360513802,1746822633049,-151.0,9.972e-05,2]
[360513804,1746822633059,-151.0,9.972e-05,2]
[360513806,1746822633069,-2279.527931,9.972e-05,2]
[360513808,1746822633078,-2279.527931,9.972e-05,2]
[360513810,1746822633089,-151.0,9.972e-05,2]
[360513812,1746822633098,-1600.0,9.972e-05,2]
[360513814,1746822633107,-500.0,0.0001019,2]
[360513816,1746822633117,-500.0,0.0001019,2]
[360513818,1746822633127,-316.60323761,0.0001019,2]
[360513820,1746822633137,-500.0,0.0001039,2]
[360513821,1746822633146,-500.0,0.0001039,2]
[360513822,1746822633156,-151.0,0.00010522,2]
[360513823,1746822633166,-151.0,0.00010522,2]
[360513825,1746822633175,-261.550082,0.00010522,2]
[360513827,1746822633184,-261.550082,0.00010522,2]
[360513829,1746822633194,-151.0,0.00010522,2]
[360513831,1746822633203,-151.0,0.00010522,2]
[360513833,1746822633213,-151.0,0.00010522,2]
[360513835,1746822633223,-278.802159,0.00010522,2]
[360513837,1746822633234,-226.080911,0.00010522,2]
[360513839,1746822633244,-151.0,0.00010522,2]
[360513841,1746822633253,-151.0,0.00010522,2]
[360513843,1746822633268,-2240.0,0.00010522,2]
[360513845,1746822633278,-404.0,0.00010522,2]
[360513846,1746822633287,-6345.95809339,0.00010587,2]
[360513849,1746822633299,-428.0601985,0.00010587,2]
[360513852,1746822633317,-4906.59309658,0.00010587,2]
[360513932,1746822638573,-500.0,8.958e-05,2]
[360513934,1746822638583,-500.0,8.958e-05,2]
[360513935,1746822638594,-500.0,8.958e-05,2]
[360513937,1746822638604,-500.0,8.958e-05,2]
[360513939,1746822638613,-500.0,8.958e-05,2]
[360513941,1746822638622,-295.7588773,8.958e-05,2]
[360513943,1746822638632,-500.0,8.958e-05,2]
[360513945,1746822638641,-500.0,8.958e-05,2]
[360513947,1746822638650,-500.0,8.958e-05,2]
[360513949,1746822638660,-393.84112273,8.958e-05,2]
[360513999,1746822639164,-106.15887727,8.958e-05,2]
[360514001,1746822639174,-500.0,8.958e-05,2]
[360514003,1746822639183,-500.0,8.958e-05,2]
[360514005,1746822639192,-500.0,8.958e-05,2]
[360514007,1746822639202,-500.0,8.958e-05,2]
[360514009,1746822639211,-500.0,8.958e-05,2]
[360514010,1746822639220,-500.0,8.958e-05,2]
[360514012,1746822639229,-443.56841253,8.958e-05,2]
[360514014,1746822639238,-500.0,8.958e-05,2]
[360514016,1746822639248,-500.0,8.958e-05,2]
[360514018,1746822639257,-500.0,8.958e-05,2]
[360514020,1746822639271,-500.0,8.958e-05,2]
[360514022,1746822639280,-500.0,8.958e-05,2]
[360514024,1746822639290,-500.0,8.958e-05,2]
[360514026,1746822639299,-500.0,8.958e-05,2]
[360514028,1746822639309,-500.0,8.958e-05,2]
[360514030,1746822639318,-500.0,8.958e-05,2]
[360514032,1746822639327,-550.0,8.958e-05,2]
[360514034,1746822639335,-500.0,8.958e-05,2]
[360514036,1746822639347,-500.0,8.958e-05,2]
[360514038,1746822639357,-3516.01381854,0.00010587,2]
[360514039,1746822639366,-151.0,0.00010587,2]
[360514041,1746822639375,-151.0,0.00010587,2]
[360514043,1746822639384,-152.778372,0.00010587,2]
[360514045,1746822639395,-261.550082,0.00010587,2]
[360514047,1746822639405,-201.68277657,0.00010587,2]
[360514049,1746822639417,-59.86730543,0.00010587,2]
[360514051,1746822639426,-151.0,0.00010587,2]
[360514053,1746822639436,-151.0,0.00010587,2]
[360514055,1746822639446,-151.0,0.00010587,2]
[360514057,1746822639455,-151.0,0.00010587,2]
[360514059,1746822639464,-431.751272,0.00010587,2]
[360514061,1746822639474,-431.751272,0.00010587,2]
[360514063,1746822639483,-151.0,0.00010587,2]
[360514065,1746822639493,-151.0,0.00010587,2]
[360514067,1746822639503,-325.13586,0.00010587,2]
[360514069,1746822639512,-325.13586,0.00010587,2]
[360514070,1746822639522,-151.0,0.00010587,2]
[360514072,1746822639532,-151.0,0.00010587,2]
[360514074,1746822639542,-151.0,0.00010587,2]
[360514076,1746822639551,-151.0,0.00010587,2]
[360514078,1746822639561,-181.062655,0.00010587,2]
[360514080,1746822639571,-181.062655,0.00010587,2]
[360514082,1746822639580,-151.0,0.00010587,2]
[360514084,1746822639590,-162.68503,0.00010587,2]
[360514086,1746822639598,-2279.527931,0.00010587,2]
[360514087,1746822639608,-2279.527931,0.00010587,2]
[360514089,1746822639617,-151.0,0.00010587,2]
[360514091,1746822639626,-151.0,0.00010587,2]
[360514093,1746822639635,-151.0,0.00010587,2]
[360514095,1746822639644,-151.482664,0.00010587,2]
[360514096,1746822639653,-500.0,0.0001059,2]
[360514098,1746822639663,-151.0,0.000106,2]
[360514100,1746822639672,-213.935366,0.000106,2]
[360514102,1746822639683,-151.0,0.000106,2]
[360514104,1746822639692,-151.0,0.000106,2]
[360514106,1746822639701,-151.0,0.000106,2]
[360514108,1746822639710,-151.0,0.000106,2]
[360514110,1746822639719,-275.757953,0.000106,2]
[360514112,1746822639728,-151.0,0.000106,2]
[360514114,1746822639737,-151.0,0.000106,2]
[360514116,1746822639746,-151.0,0.000106,2]
[360514117,1746822639755,-151.0,0.000106,2]
[360514119,1746822639764,-151.0,0.000106,2]
[360514121,1746822639774,-151.0,0.000106,2]
[360514123,1746822639784,-151.0,0.000106,2]
[360514125,1746822639793,-151.0,0.000106,2]
[360514127,1746822639803,-151.0,0.000106,2]
[360514129,1746822639812,-261.550082,0.000106,2]
[360514131,1746822639821,-261.550082,0.000106,2]
[360514133,1746822639831,-261.550082,0.000106,2]
[360514135,1746822639840,-261.550082,0.000106,2]
[360514137,1746822639850,-261.550082,0.000106,2]
[360514139,1746822639859,-261.550082,0.000106,2]
[360514141,1746822639868,-158.458063,0.000106,2]
[360514143,1746822639879,-151.0,0.000106,2]
[360514145,1746822639888,-151.0,0.000106,2]
[360514147,1746822639897,-151.0,0.000106,2]
[360514149,1746822639907,-164.429793,0.000106,2]
[360514150,1746822639916,-151.0,0.000106,2]
[360514152,1746822639925,-151.0,0.000106,2]
[360514154,1746822639935,-151.0,0.000106,2]
[360514156,1746822639944,-431.751272,0.000106,2]
[360514158,1746822639953,-431.751272,0.000106,2]
[360514160,1746822639963,-431.751272,0.000106,2]
[360514173,1746822640086,-431.751272,0.000106,2]
[360514175,1746822640096,-431.751272,0.000106,2]
[360514177,1746822640105,-431.751272,0.000106,2]
[360514179,1746822640115,-151.0,0.000106,2]
[360514181,1746822640124,-151.0,0.000106,2]
[360514183,1746822640134,-151.0,0.000106,2]
[360514185,1746822640143,-151.0,0.000106,2]
[360514187,1746822640153,-151.0,0.000106,2]
[360514189,1746822640162,-151.0,0.000106,2]
[360514191,1746822640173,-50.2089781,0.000106,2]
[360514193,1746822640186,-100.7910219,0.000106,2]
[360514195,1746822640195,-151.0,0.000106,2]
[360514197,1746822640204,-151.0,0.000106,2]
[360514199,1746822640214,-151.0,0.000106,2]
[360514201,1746822640224,-186.649042,0.000106,2]
[360514203,1746822640233,-151.0,0.000106,2]
[360514204,1746822640242,-24.29892407,0.000106,2]
[360514207,1746822640260,-126.70107593,0.000106,2]
[360514209,1746822640274,-151.0,0.000106,2]
[360514211,1746822640283,-151.0,0.000106,2]
[360514213,1746822640292,-151.0,0.000106,2]
[360514215,1746822640301,-151.0,0.000106,2]
[360514217,1746822640311,-185.623925,0.000106,2]
[360514219,1746822640320,-325.13586,0.000106,2]
[360514221,1746822640330,-325.13586,0.000106,2]
[360514223,1746822640340,-325.13586,0.000106,2]
[360514225,1746822640350,-325.13586,0.000106,2]
[360514227,1746822640359,-325.13586,0.000106,2]
[360514229,1746822640369,-325.13586,0.000106,2]
[360514230,1746822640378,-325.13586,0.000106,2]
[360514232,1746822640387,-325.13586,0.000106,2]
[360514234,1746822640396,-325.13586,0.000106,2]
[360514236,1746822640405,-325.13586,0.000106,2]
[360514238,1746822640414,-151.0,0.000106,2]
[360514240,1746822640423,-151.0,0.000106,2]
[360514242,1746822640434,-151.0,0.000106,2]
[360514244,1746822640443,-151.0,0.000106,2]
[360514246,1746822640452,-151.0,0.000106,2]
[360514248,1746822640462,-151.0,0.000106,2]
[360514250,1746822640471,-151.0,0.000106,2]
[360514251,1746822640481,-151.0,0.000106,2]
[360514253,1746822640490,-151.0,0.000106,2]
[360514255,1746822640500,-151.0,0.000106,2]
[360514257,1746822640509,-151.0,0.000106,2]
[360514259,1746822640518,-151.0,0.000106,2]
[360514261,1746822640527,-151.0,0.000106,2]
[360514263,1746822640537,-151.0,0.000106,2]
[360514265,1746822640546,-76.28333535,0.000106,2]
[360514267,1746822640559,-74.71666465,0.000106,2]
[360514269,1746822640568,-151.0,0.000106,2]
[360514271,1746822640578,-181.062655,0.000106,2]
[360514273,1746822640587,-181.062655,0.000106,2]
[360514275,1746822640596,-181.062655,0.000106,2]
[360514277,1746822640605,-45.43046957,0.000106,2]
[360514279,1746822640616,-135.63218543,0.000106,2]
[360514281,1746822640626,-181.062655,0.000106,2]
[360514283,1746822640635,-181.062655,0.000106,2]
[360514285,1746822640645,-181.062655,0.000106,2]
[360514287,1746822640654,-181.062655,0.000106,2]
[360514289,1746822640664,-8.08745107,0.000106,2]
[360514317,1746822641067,-172.97520393,0.000106,2]
[360514318,1746822641077,-181.062655,0.000106,2]
[360514319,1746822641086,-181.062655,0.000106,2]
[360514320,1746822641096,-181.062655,0.000106,2]
[360514321,1746822641106,-151.0,0.000106,2]
[360514322,1746822641115,-151.0,0.000106,2]
[360514323,1746822641125,-151.0,0.000106,2]
[360514324,1746822641134,-151.0,0.000106,2]
[360514325,1746822641144,-151.0,0.000106,2]
[360514326,1746822641153,-151.0,0.000106,2]
[360514327,1746822641162,-1002.46528782,0.000106,2]
[360514328,1746822641178,-1277.06264318,0.000106,2]
[360514329,1746822641191,-852.93014478,0.000106,2]
[360514330,1746822641203,-1426.59778622,0.000106,2]
[360514331,1746822641213,-955.87249197,0.000106,2]
[360514525,1746822643787,-457.15255181,0.000106,2]
[360514526,1746822643799,-587.8,0.000106,2]
[360514527,1746822643810,-278.70288722,0.000106,2]
[360514528,1746822643820,-2279.527931,0.000106,2]
[360514529,1746822643829,-2279.527931,0.000106,2]
[360514530,1746822643839,-2279.527931,0.000106,2]
[360514531,1746822643848,-2279.527931,0.000106,2]
[360514532,1746822643858,-2279.527931,0.000106,2]
[360514533,1746822643867,-2279.527931,0.000106,2]
[360514534,1746822643879,-2279.527931,0.000106,2]
[360514535,1746822643890,-2279.527931,0.000106,2]
[360514536,1746822643900,-2279.527931,0.000106,2]
[360514537,1746822643910,-151.0,0.000106,2]
[360514538,1746822643920,-151.0,0.000106,2]
[360514539,1746822643930,-151.0,0.000106,2]
[360514540,1746822643942,-151.0,0.000106,2]
[360514541,1746822643953,-151.0,0.000106,2]
[360514542,1746822643963,-151.0,0.000106,2]
[360514543,1746822643973,-151.0,0.000106,2]
[360514544,1746822643983,-202.606607,0.000106,2]
[360514545,1746822643993,-435.8615978,0.0001064,2]
[360514546,1746822644003,-151.0,0.0001064,2]
[360514547,1746822644013,-2334.0090264,0.0001066,2]
[360514548,1746822644023,-151.0,0.0001066,2]
[360514549,1746822644032,-151.0,0.0001066,2]
[360514550,1746822644042,-151.0,0.0001066,2]
[360514551,1746822644052,-151.0,0.0001066,2]
[360514552,1746822644062,-151.0,0.0001066,2]
[360514553,1746822644071,-151.0,0.0001066,2]
[360514554,1746822644080,-261.550082,0.0001066,2]
[360514555,1746822644090,-261.550082,0.0001066,2]
[360514556,1746822644100,-151.0,0.0001066,2]
[360514557,1746822644109,-151.0,0.0001066,2]
[360514558,1746822644119,-431.751272,0.0001066,2]
[360514559,1746822644129,-431.751272,0.0001066,2]
[360514560,1746822644138,-151.0,0.0001066,2]
[360514561,1746822644147,-151.0,0.0001066,2]
[360514562,1746822644156,-151.0,0.00010665,2]
[360514563,1746822644165,-151.0,0.00010665,2]
[360514564,1746822644175,-151.0,0.00010665,2]
[360514565,1746822644184,-151.0,0.00010665,2]
[360514566,1746822644194,-500.0,0.00010673,2]
[360514567,1746822644204,-500.0,0.00010673,2]
[360514568,1746822644214,-500.0,0.00010673,2]
[360514569,1746822644223,-500.0,0.00010673,2]
[360514570,1746822644232,-406.66237181,0.00010673,2]
[360514571,1746822644242,-500.0,0.00010673,2]
[360514572,1746822644252,-500.0,0.00010673,2]
[360514573,1746822644263,-500.0,0.00010673,2]
[360514574,1746822644275,-500.0,0.00010673,2]
[360514575,1746822644284,-500.0,0.00010673,2]
[360514576,1746822644293,-500.0,0.00010673,2]
[360514577,1746822644303,-500.0,0.00010673,2]
[360514578,1746822644313,-151.0,0.00010673,2]
[360514579,1746822644322,-151.0,0.00010673,2]
[360514580,1746822644332,-151.0,0.00010673,2]
[360514581,1746822644343,-151.0,0.00010673,2]
[360514582,1746822644352,-151.0,0.00010673,2]